bitfinex/quotes_BTCUSD_20240827
["timestamp","ask_amount","ask_price","bid_price","bid_amount"]
[1724754391807,0.04744579,62484.0,62483.0,0.382223]
[1724754392035,0.04744579,62484.0,62483.0,0.389223]
[1724754392260,0.20748579,62484.0,62483.0,0.389223]
[1724754392496,0.16004,62484.0,62483.0,0.389223]
[1724754392708,0.29206869,62485.0,62483.0,0.382223]
[1724754392953,0.04744667,62484.0,62483.0,0.382223]
[1724754393155,0.04744252,62484.0,62483.0,0.388223]
[1724754393379,0.04844252,62484.0,62483.0,0.394223]
[1724754393592,0.07216869,62484.0,62483.0,0.378223]
[1724754393825,0.23220869,62484.0,62483.0,0.378223]
[1724754394040,0.23220869,62484.0,62483.0,0.383223]
[1724754394262,0.07116869,62484.0,62483.0,0.378223]
[1724754394687,0.58822645,62484.0,62483.0,0.200823]
[1724754395112,0.51705776,62484.0,62483.0,0.208823]
[1724754395332,0.58822303,62484.0,62483.0,0.208823]
[1724754395600,0.58822303,62484.0,62483.0,0.200823]
[1724754395811,0.58922303,62484.0,62483.0,0.206823]
[1724754396021,0.58922303,62484.0,62483.0,0.216823]
[1724754396454,0.51805776,62484.0,62483.0,0.216823]
[1724754396660,0.07216589,62484.0,62483.0,0.25686974]
[1724754396877,0.07216589,62484.0,62483.0,0.216823]
[1724754397087,0.23220589,62484.0,62483.0,0.216823]
[1724754397293,0.58922365,62484.0,62483.0,0.216823]
[1724754397508,0.83813876,62484.0,62483.0,0.216823]
[1724754397737,1.70885714,62484.0,62483.0,0.216823]
[1724754397953,1.56632715,62484.0,62483.0,0.216823]
[1724754398843,1.56632715,62484.0,62483.0,0.210823]
[1724754398844,1.64980143,62484.0,62483.0,0.210823]
[1724754399066,1.50750813,62484.0,62483.0,0.200823]
[1724754399286,1.51450813,62484.0,62483.0,0.201823]
[1724754399543,1.50750813,62484.0,62483.0,0.200823]
[1724754399759,1.51450813,62484.0,62483.0,0.201823]
[1724754399991,1.50850813,62484.0,62483.0,0.200823]
[1724754400455,1.50850813,62484.0,62483.0,0.382123]
[1724754400456,0.65014613,62484.0,62483.0,0.382123]
[1724754400681,0.19723037,62484.0,62483.0,0.603723]
[1724754400906,0.35626894,62484.0,62483.0,0.603723]
[1724754401134,0.12508837,62484.0,62483.0,0.4414953]
[1724754401371,0.19622677,62484.0,62483.0,0.381123]
[1724754401598,0.02508837,62484.0,62483.0,0.381123]
[1724754402120,0.02508837,62484.0,62483.0,0.382123]
[1724754402383,0.02508837,62484.0,62483.0,0.381123]
[1724754402613,0.02708837,62484.0,62483.0,0.381123]
[1724754403038,0.02508837,62484.0,62483.0,0.381123]
[1724754403239,0.02508837,62484.0,62483.0,0.386123]
[1724754406417,0.04742366,62485.0,62483.0,0.386123]
[1724754407045,0.04923426,62486.0,62483.0,0.386123]
[1724754407251,0.04832896,62486.0,62483.0,0.382123]
[1724754407461,0.04832896,62486.0,62484.0,0.0382123]
[1724754407679,0.04832896,62486.0,62483.0,0.382123]
[1724754407680,0.20927126,62486.0,62483.0,0.382123]
[1724754408113,0.04742366,62485.0,62483.0,0.382123]
[1724754408563,0.800202,62484.0,62483.0,0.201823]
[1724754408767,0.87133281,62484.0,62483.0,0.203823]
[1724754408975,0.89504308,62484.0,62483.0,0.203823]
[1724754409193,0.800202,62484.0,62483.0,0.203823]
[1724754409420,0.800202,62484.0,62483.0,0.200823]
[1724754409660,0.89505337,62484.0,62483.0,0.200823]
[1724754409895,0.89505218,62484.0,62483.0,0.200823]
[1724754410334,0.89505218,62484.0,62483.0,0.205823]
[1724754411448,2.21948176,62484.0,62483.0,0.205823]
[1724754411660,2.24348176,62484.0,62483.0,0.205823]
[1724754412087,1.359661,62463.0,62454.0,0.0030947]
[1724754412311,1.51779876,62463.0,62449.0,0.0030947]
[1724754412528,1.51779876,62463.0,62448.0,0.1858]
[1724754412529,1.81947707,62463.0,62450.0,0.0030947]
[1724754412765,1.81947707,62463.0,62447.0,0.0010947]
[1724754412766,1.84457636,62463.0,62447.0,0.0010947]
[1724754412984,1.84457636,62463.0,62443.0,0.1796]
[1724754412985,1.84457636,62463.0,62443.0,0.1776]
[1724754413193,1.92767636,62463.0,62447.0,0.0030947]
[1724754413440,1.92967636,62463.0,62462.0,0.001823]
[1724754413925,1.94167636,62463.0,62462.0,0.001823]
[1724754414134,1.92767636,62463.0,62462.0,0.000823]
[1724754415307,1.62148736,62463.0,62462.0,0.001823]
[1724754415512,0.65900936,62463.0,62462.0,0.001823]
[1724754415735,0.29919329,62463.0,62462.0,0.001823]
[1724754415949,0.15309929,62463.0,62462.0,0.001823]
[1724754416161,0.53338229,62463.0,62462.0,0.001823]
[1724754416395,0.92557129,62463.0,62462.0,0.000823]
[1724754416641,0.93957129,62463.0,62462.0,0.000823]
[1724754416844,0.92557129,62463.0,62462.0,0.000823]
[1724754417072,0.60538229,62463.0,62462.0,0.000823]
[1724754417298,0.61838229,62463.0,62462.0,0.001823]
[1724754417789,0.93857129,62463.0,62462.0,0.001823]
[1724754418000,0.61838229,62463.0,62462.0,0.001823]
[1724754418690,0.61238229,62463.0,62462.0,0.000823]
[1724754418923,0.93257129,62463.0,62462.0,0.000823]
[1724754419136,0.93557129,62463.0,62462.0,0.000823]
[1724754419350,0.61538229,62463.0,62462.0,0.000823]
[1724754419994,0.93557129,62463.0,62462.0,0.000823]
[1724754420214,0.61538229,62463.0,62462.0,0.000823]
[1724754420430,0.93557129,62463.0,62462.0,0.000823]
[1724754420876,0.61538229,62463.0,62462.0,0.000823]
[1724754422003,0.93557129,62463.0,62462.0,0.000823]
[1724754422225,0.61538229,62463.0,62462.0,0.000823]
[1724754424015,0.93557129,62463.0,62462.0,0.000823]
[1724754424679,0.93557129,62463.0,62462.0,0.00064749]
[1724754424929,0.14179535,62480.0,62462.0,0.56356558]
[1724754425207,0.009053,62516.0,62462.0,0.56356558]
[1724754425208,0.07091679,62496.0,62485.0,0.655814]
[1724754425458,0.47675426,62497.0,62485.0,1.01819]
[1724754425681,0.47675426,62497.0,62485.0,1.02752103]
[1724754425940,0.47675426,62497.0,62485.0,1.47234465]
[1724754426168,0.009053,62507.0,62485.0,1.74493171]
[1724754426385,0.009053,62507.0,62488.0,1.73826818]
[1724754426649,0.009053,62507.0,62488.0,1.92018627]
[1724754426890,0.009053,62507.0,62488.0,2.07910436]
[1724754428094,0.009053,62507.0,62488.0,2.13389131]
[1724754428821,0.009053,62507.0,62488.0,2.13382273]
[1724754429054,0.00152008,62489.0,62488.0,2.14782273]
[1724754429520,0.00052008,62489.0,62488.0,2.13382273]
[1724754429750,0.00252008,62489.0,62488.0,2.14782273]
[1724754430224,0.00252008,62489.0,62488.0,2.13382273]
[1724754430453,0.00152008,62489.0,62488.0,2.13382273]
[1724754430686,0.00252008,62489.0,62488.0,2.46788373]
[1724754431595,0.00152008,62489.0,62488.0,2.46788373]
[1724754432099,0.00052008,62489.0,62488.0,2.45388373]
[1724754432327,0.00152008,62489.0,62488.0,2.46588373]
[1724754432969,0.00252008,62489.0,62488.0,2.46588373]
[1724754433626,0.00152008,62489.0,62488.0,2.46588373]
[1724754433845,0.00052008,62489.0,62488.0,2.45388373]
[1724754434070,0.00152008,62489.0,62488.0,2.45388373]
[1724754435231,0.00152008,62489.0,62488.0,2.46588373]
[1724754435232,0.00252008,62489.0,62488.0,2.46588373]
[1724754435471,0.00252008,62489.0,62488.0,2.46495231]
[1724754435708,0.00252008,62489.0,62488.0,2.14582273]
[1724754439990,0.00252008,62489.0,62488.0,2.46588373]
[1724754442438,0.00232747,62489.0,62488.0,2.46588373]
[1724754444660,0.00232747,62489.0,62488.0,2.46572237]
[1724754445590,0.00232747,62489.0,62488.0,2.78578337]
[1724754445793,0.009053,62507.0,62500.0,1.80817355]
[1724754446021,0.009053,62507.0,62500.0,2.31009164]
[1724754446478,0.009053,62507.0,62506.0,1.44079142]
[1724754446694,0.009053,62507.0,62506.0,1.85880951]
[1724754446929,0.009053,62507.0,62506.0,1.91516607]
[1724754447377,0.009053,62524.0,62506.0,1.91516607]
[1724754447378,0.009053,62524.0,62515.0,1.12066142]
[1724754447615,0.009053,62524.0,62515.0,1.57732164]
[1724754448076,0.009053,62524.0,62515.0,1.89724464]
[1724754448310,0.009053,62524.0,62515.0,2.44439226]
[1724754448812,0.009053,62524.0,62515.0,2.12446926]
[1724754449041,0.009053,62524.0,62515.0,2.12946926]
[1724754449939,0.009053,62524.0,62515.0,2.13146926]
[1724754450169,0.009053,62524.0,62521.0,1.34009291]
[1724754450389,0.1938,62540.0,62521.0,1.34009291]
[1724754450390,0.71665847,62541.0,62534.0,0.319825]
[1724754450621,0.71665847,62541.0,62538.0,0.479707]
[1724754450844,0.23990421,62541.0,62538.0,0.08603998]
[1724754451067,0.23990421,62541.0,62535.0,0.21953949]
[1724754451068,0.23990421,62541.0,62535.0,0.37944849]
[1724754451279,0.23990421,62541.0,62535.0,0.21953949]
[1724754451522,0.0019053,62539.0,62538.0,0.32073642]
[1724754451751,0.0019053,62539.0,62538.0,1.08433311]
[1724754451969,0.0019053,62539.0,62538.0,0.2848736]
[1724754452187,0.0019053,62539.0,62538.0,0.173902]
[1724754452445,0.0019053,62539.0,62538.0,0.49594206]
[1724754452901,0.0019053,62539.0,62538.0,0.16213706]
[1724754453124,0.0019053,62539.0,62535.0,0.21953949]
[1724754453345,0.0009053,62539.0,62536.0,0.023]
[1724754453573,0.0009053,62539.0,62538.0,0.014]
[1724754453802,0.0019053,62539.0,62538.0,0.014]
[1724754454047,0.0019053,62539.0,62537.0,0.39193856]
[1724754454284,0.0029053,62539.0,62538.0,0.29931756]
[1724754454755,0.0029053,62539.0,62538.0,0.28531756]
[1724754454976,0.0009053,62539.0,62538.0,0.28531756]
[1724754455192,0.0009053,62539.0,62538.0,0.6073572]
[1724754455640,0.0009053,62539.0,62538.0,0.12541556]
[1724754455858,0.0009053,62539.0,62538.0,0.28531756]
[1724754456991,0.0019053,62539.0,62538.0,0.61912256]
[1724754460800,0.0019053,62539.0,62538.0,0.93892756]
[1724754462564,0.0019053,62539.0,62538.0,0.028]
[1724754462794,0.4218053,62539.0,62538.0,0.028]
[1724754463564,0.2297053,62539.0,62538.0,0.028]
[1724754463760,0.2287053,62539.0,62538.0,0.014]
[1724754463994,0.2287053,62539.0,62538.0,0.025]
[1724754463995,0.2297053,62539.0,62538.0,0.025]
[1724754464211,0.2297053,62539.0,62538.0,0.0434915]
[1724754464449,0.2297053,62539.0,62538.0,0.0294915]
[1724754464661,0.2297053,62539.0,62538.0,0.023]
[1724754465087,0.2297053,62539.0,62538.0,0.011]
[1724754465518,0.2297053,62539.0,62538.0,0.025]
[1724754466171,0.0019053,62539.0,62538.0,1.00643009]
[1724754466387,0.0019053,62539.0,62538.0,1.10716624]
[1724754467347,0.0019053,62539.0,62538.0,1.42697124]
[1724754468456,0.0019053,62539.0,62538.0,1.10716624]
[1724754468681,0.0019053,62539.0,62538.0,0.28563815]
[1724754469131,0.0019053,62539.0,62538.0,0.12573615]
[1724754469347,0.0019053,62539.0,62538.0,0.025]
[1724754469805,0.2421053,62539.0,62538.0,0.025]
[1724754470506,1.2274053,62539.0,62538.0,0.025]
[1724754470778,0.5878053,62539.0,62538.0,0.025]
[1724754471007,0.9076053,62539.0,62538.0,0.025]
[1724754471239,0.5878053,62539.0,62529.0,0.159925]
[1724754471489,0.5868063,62539.0,62529.0,0.159924]
[1724754471723,0.9076063,62539.0,62538.0,0.02]
[1724754471948,0.9076063,62539.0,62538.0,0.012]
[1724754472190,0.9076063,62539.0,62528.0,0.159928]
[1724754472191,0.159904,62538.0,62528.0,0.159928]
[1724754472425,0.5878073,62539.0,62529.0,0.08849489]
[1724754472648,0.5878073,62539.0,62529.0,0.08625871]
[1724754472649,0.159902,62538.0,62529.0,0.08625871]
[1724754473107,0.4279053,62539.0,62529.0,0.08625871]
[1724754473364,0.4279053,62539.0,62529.0,0.007]
[1724754473578,0.159911,62535.0,62529.0,0.007]
[1724754473803,0.159911,62535.0,62527.0,0.09242662]
[1724754474031,0.159911,62535.0,62529.0,0.005]
[1724754474253,0.4269053,62539.0,62529.0,0.04777221]
[1724754474491,0.4269053,62539.0,62529.0,0.05177221]
[1724754474492,0.319805,62538.0,62529.0,0.05177221]
[1724754474709,0.319805,62538.0,62529.0,0.04777221]
[1724754474948,0.319805,62538.0,62529.0,0.05977221]
[1724754475157,0.4269053,62539.0,62530.0,0.08618985]
[1724754475158,0.2411053,62539.0,62530.0,0.08618985]
[1724754475607,0.001,62535.0,62534.0,0.159911]
[1724754475824,0.001,62535.0,62534.0,0.08619091]
[1724754476048,0.001,62535.0,62534.0,0.08119091]
[1724754476287,0.001,62535.0,62534.0,0.56316571]
[1724754476741,0.001,62535.0,62534.0,0.08342671]
[1724754476956,0.0009053,62539.0,62534.0,0.24333971]
[1724754477170,0.0009053,62539.0,62535.0,0.10658678]
[1724754477392,0.0009053,62539.0,62536.0,0.16214026]
[1724754478314,0.0009053,62539.0,62536.0,0.00223526]
[1724754478533,0.0019053,62539.0,62536.0,0.16214026]
[1724754478754,0.0019053,62539.0,62538.0,0.159902]
[1724754478997,0.0019053,62539.0,62538.0,0.5049417]
[1724754479244,0.0019053,62539.0,62538.0,1.0797467]
[1724754479465,0.0019053,62539.0,62538.0,1.23866479]
[1724754479952,0.0019053,62539.0,62538.0,0.757707]
[1724754480170,0.0019053,62539.0,62537.0,0.1207771]
[1724754480171,0.2376053,62539.0,62537.0,0.1207771]
[1724754480384,0.2366053,62539.0,62532.0,0.319831]
[1724754480609,0.2366053,62539.0,62533.0,0.05327249]
[1724754480826,0.3199,62546.0,62538.0,0.01]
[1724754480827,0.413985,62545.0,62538.0,0.01]
[1724754481070,0.413985,62545.0,62539.0,0.00223535]
[1724754481303,0.43904727,62545.0,62539.0,0.00223535]
[1724754481537,0.159887,62544.0,62539.0,0.00223535]
[1724754481756,0.159887,62544.0,62537.0,0.0865552]
[1724754481757,0.159887,62544.0,62538.0,0.00223543]
[1724754481987,0.159887,62544.0,62539.0,0.02486996]
[1724754482206,0.27916227,62545.0,62539.0,0.02486996]
[1724754482447,0.27916227,62545.0,62540.0,0.00223543]
[1724754482899,0.27916227,62545.0,62539.0,0.03186996]
[1724754483343,0.159888,62544.0,62539.0,0.03186996]
[1724754483575,0.27916227,62545.0,62539.0,0.011]
[1724754483785,0.2489,62543.0,62539.0,0.011]
[1724754484001,0.159896,62541.0,62539.0,0.004]
[1724754484227,0.159896,62541.0,62533.0,0.05103668]
[1724754484464,0.159896,62541.0,62540.0,0.007]
[1724754484948,0.159896,62541.0,62534.0,0.05308057]
[1724754485170,0.2489,62543.0,62539.0,0.015]
[1724754485171,0.159898,62540.0,62539.0,0.015]
[1724754485406,0.159893,62542.0,62539.0,0.015]
[1724754485624,0.2489,62543.0,62539.0,0.015]
[1724754485625,0.159895,62541.0,62539.0,0.015]
[1724754485852,0.159892,62542.0,62539.0,0.006]
[1724754486323,0.2489,62543.0,62539.0,0.006]
[1724754486545,0.2489,62543.0,62539.0,0.04762178]
[1724754486767,0.2489,62543.0,62540.0,0.005]
[1724754487192,0.2489,62543.0,62539.0,0.04762178]
[1724754487408,0.40879,62543.0,62539.0,0.004]
[1724754487621,0.40879,62543.0,62534.0,0.05327307]
[1724754487622,0.2489,62543.0,62534.0,0.21318307]
[1724754487867,0.2489,62543.0,62540.0,0.008]
[1724754488087,0.2489,62543.0,62540.0,0.011]
[1724754488301,0.2489,62543.0,62540.0,0.003]
[1724754489451,0.2489,62543.0,62540.0,0.009]
[1724754489926,0.2489,62543.0,62540.0,0.006]
[1724754490365,0.2489,62543.0,62540.0,0.009]
[1724754491079,0.02596648,62545.0,62540.0,0.009]
[1724754491312,0.02596648,62545.0,62542.0,0.159891]
[1724754491313,0.00090421,62545.0,62542.0,0.159891]
[1724754491535,0.00090421,62545.0,62543.0,0.09152313]
[1724754491536,0.02596553,62545.0,62543.0,0.09152313]
[1724754491977,0.00090421,62545.0,62543.0,0.09152313]
[1724754493357,0.00090421,62545.0,62543.0,0.004]
[1724754497112,0.00090421,62545.0,62544.0,0.00223481]
[1724754497982,0.00090421,62545.0,62543.0,0.004]
[1724754498649,0.00090421,62545.0,62540.0,0.159897]
[1724754498864,0.00090421,62545.0,62544.0,0.004]
[1724754499617,0.00090421,62545.0,62541.0,0.27337715]
[1724754499865,0.00090421,62545.0,62520.0,0.04797176]
[1724754499866,0.2454,62534.0,62520.0,0.04797176]
[1724754500094,0.79968,62525.0,62511.0,0.0030947]
[1724754500317,1.58674143,62525.0,62503.0,0.47675426]
[1724754500553,1.68674143,62525.0,62502.0,0.1933]
[1724754500800,2.00661343,62525.0,62495.0,0.1982]
[1724754501024,2.12152448,62525.0,62495.0,0.1982]
[1724754501254,2.26442231,62525.0,62499.0,0.160001]
[1724754501489,2.12152448,62525.0,62497.0,0.160006]
[1724754501714,2.12152448,62525.0,62495.0,0.358211]
[1724754501922,2.26442231,62525.0,62495.0,0.358211]
[1724754502162,2.12152448,62525.0,62495.0,0.358211]
[1724754502382,2.12152448,62525.0,62524.0,0.001822]
[1724754502605,2.12552448,62525.0,62524.0,0.002822]
[1724754502820,2.12552448,62525.0,62524.0,0.001822]
[1724754502821,2.12152448,62525.0,62524.0,0.001822]
[1724754503040,2.12152448,62525.0,62524.0,0.000822]
[1724754503255,2.12152448,62525.0,62524.0,0.001822]
[1724754503256,2.12552448,62525.0,62524.0,0.001822]
[1724754503480,2.12552448,62525.0,62524.0,0.000822]
[1724754503690,2.12552448,62525.0,62524.0,0.001822]
[1724754503910,2.12952448,62525.0,62524.0,0.001822]
[1724754504370,2.13052448,62525.0,62524.0,0.002822]
[1724754504613,2.13052448,62525.0,62495.0,0.1982]
[1724754504614,0.4346,62501.0,62490.0,0.1832]
[1724754504845,0.4346,62501.0,62488.0,0.000823]
[1724754504846,0.160014,62495.0,62492.0,0.0030947]
[1724754505069,0.160014,62495.0,62488.0,0.000823]
[1724754505288,0.160011,62496.0,62488.0,0.000823]
[1724754505525,0.160014,62495.0,62490.0,0.0030947]
[1724754505749,0.160014,62495.0,62488.0,0.000823]
[1724754505989,0.0357203,62498.0,62488.0,0.000823]
[1724754506209,0.1957263,62498.0,62492.0,0.0030947]
[1724754506427,0.0357203,62498.0,62492.0,0.0030947]
[1724754506654,0.003,62496.0,62492.0,0.0030947]
[1724754506875,0.003,62496.0,62488.0,0.000823]
[1724754507095,0.003,62496.0,62492.0,0.0030947]
[1724754507785,0.003,62496.0,62489.0,0.00224286]
[1724754508047,0.003,62496.0,62492.0,0.0030947]
[1724754508264,0.003,62496.0,62492.0,0.05934043]
[1724754508481,0.2371,62501.0,62492.0,0.05934043]
[1724754508700,0.2371,62501.0,62492.0,0.0040947]
[1724754508701,0.001,62496.0,62492.0,0.0040947]
[1724754508920,0.001,62496.0,62492.0,0.1641137]
[1724754509141,0.001,62496.0,62492.0,0.0040947]
[1724754509397,0.03527222,62500.0,62492.0,0.0030947]
[1724754509879,0.03527222,62500.0,62492.0,0.0040947]
[1724754509880,0.320006,62499.0,62492.0,0.0040947]
[1724754510324,0.03527222,62500.0,62492.0,0.0040947]
[1724754510535,0.19927234,62500.0,62492.0,0.0040947]
[1724754510766,0.03527222,62500.0,62492.0,0.0040947]
[1724754510987,0.03527222,62500.0,62492.0,0.001]
[1724754511218,0.160003,62499.0,62492.0,0.0040947]
[1724754511651,0.160003,62499.0,62492.0,0.0030947]
[1724754511906,0.001,62496.0,62489.0,0.160027]
[1724754512097,0.001,62496.0,62492.0,0.0030947]
[1724754512528,0.160003,62499.0,62492.0,0.0030947]
[1724754512751,0.161003,62499.0,62492.0,0.0030947]
[1724754513875,0.160005,62498.0,62492.0,0.0030947]
[1724754514095,0.001,62499.0,62492.0,0.0030947]
[1724754514324,0.001,62496.0,62492.0,0.0030947]
[1724754514589,0.32001,62498.0,62492.0,0.0030947]
[1724754514807,0.32001,62498.0,62488.0,0.000823]
[1724754514808,0.001,62496.0,62488.0,0.000823]
[1724754515029,0.001,62496.0,62492.0,0.0030947]
[1724754515252,0.160007,62497.0,62492.0,0.0030947]
[1724754515461,0.160007,62497.0,62488.0,0.000823]
[1724754515675,0.160008,62497.0,62492.0,0.0030947]
[1724754516126,0.001,62496.0,62492.0,0.0030947]
[1724754516344,0.16201,62496.0,62492.0,0.0030947]
[1724754516570,0.16201,62496.0,62488.0,0.000823]
[1724754516795,0.002,62496.0,62488.0,0.000823]
[1724754517015,0.162011,62496.0,62492.0,0.0030947]
[1724754517239,0.002,62496.0,62492.0,0.0030947]
[1724754517462,0.001,62496.0,62492.0,0.0030947]
[1724754517698,0.160008,62497.0,62492.0,0.0030947]
[1724754517929,0.161008,62497.0,62492.0,0.0030947]
[1724754518154,0.160012,62495.0,62492.0,0.0050947]
[1724754518433,0.982687,62493.0,62492.0,0.002]
[1724754518678,0.160028,62489.0,62488.0,0.000823]
[1724754518918,0.480084,62489.0,62488.0,0.000823]
[1724754519152,0.160028,62489.0,62488.0,0.000823]
[1724754521246,0.1,62494.0,62489.0,0.2424]
[1724754521485,0.02508405,62495.0,62491.0,0.1683]
[1724754521719,0.02508405,62495.0,62494.0,0.160015]
[1724754521942,0.02508405,62495.0,62494.0,0.41355667]
[1724754522161,0.31550951,62506.0,62494.0,0.73358667]
[1724754522383,0.31550951,62506.0,62500.0,0.159999]
[1724754522603,0.02507985,62505.0,62497.0,0.00224155]
[1724754522836,0.02507985,62505.0,62500.0,0.159998]
[1724754523054,0.02507985,62505.0,62500.0,0.319999]
[1724754523280,0.02507985,62505.0,62500.0,0.38856732]
[1724754523495,0.02507985,62505.0,62502.0,0.159994]
[1724754523729,0.02507985,62505.0,62501.0,0.159997]
[1724754524178,0.02507985,62505.0,62500.0,0.54856432]
[1724754524420,0.02607985,62505.0,62500.0,0.12320189]
[1724754524627,0.02607985,62505.0,62501.0,0.173]
[1724754524852,0.02507985,62505.0,62501.0,0.173]
[1724754525110,0.02607985,62505.0,62501.0,0.173]
[1724754525332,0.02507985,62505.0,62501.0,0.173]
[1724754525547,0.02607985,62505.0,62501.0,0.263431]
[1724754525756,0.02707985,62505.0,62501.0,0.423427]
[1724754525966,0.02607985,62505.0,62501.0,0.423427]
[1724754526175,0.02607985,62505.0,62502.0,0.0746435]
[1724754526397,0.02707985,62505.0,62502.0,0.2346375]
[1724754526616,0.02707985,62505.0,62501.0,0.433426]
[1724754526832,0.02607985,62505.0,62502.0,0.2268]
[1724754527317,0.02707985,62505.0,62504.0,0.159989]
[1724754527547,0.02707985,62505.0,62502.0,0.386793]
[1724754527809,0.02707985,62505.0,62504.0,0.159989]
[1724754527810,0.02607985,62505.0,62504.0,0.159989]
[1724754528030,0.31550951,62506.0,62505.0,0.159987]
[1724754529142,0.31550951,62506.0,62505.0,0.24818772]
[1724754529341,0.31550951,62506.0,62505.0,0.159987]
[1724754529784,0.31550951,62506.0,62505.0,0.479961]
[1724754530516,0.31550951,62506.0,62505.0,0.799935]
[1724754530976,0.31650951,62506.0,62505.0,1.220835]
[1724754531438,0.31750951,62506.0,62505.0,1.229835]
[1724754531681,0.31750951,62506.0,62505.0,1.38875309]
[1724754533349,0.31750951,62506.0,62505.0,1.86764518]
[1724754535117,0.31750951,62506.0,62505.0,1.38875309]
[1724754535419,0.31750951,62506.0,62505.0,0.909861]
[1724754536299,0.31750951,62506.0,62505.0,0.349987]
[1724754536752,0.31750951,62506.0,62505.0,0.885861]
[1724754536971,0.31750951,62506.0,62505.0,1.205835]
[1724754537212,0.31750951,62506.0,62505.0,1.34846559]
[1724754537448,0.31750951,62506.0,62505.0,0.009]
[1724754537655,0.47749351,62506.0,62505.0,0.009]
[1724754538129,0.31750951,62506.0,62505.0,0.009]
[1724754541250,0.31750951,62506.0,62505.0,0.168987]
[1724754541464,0.31750951,62506.0,62505.0,0.009]
[1724754541903,0.31750951,62506.0,62505.0,0.168987]
[1724754542326,0.31750951,62506.0,62505.0,0.7695306]
[1724754543615,0.31750951,62506.0,62505.0,0.7693193]
[1724754544507,0.31750951,62506.0,62505.0,1.0892933]
[1724754544724,0.31841481,62506.0,62505.0,1.0892933]
[1724754546072,0.31841481,62506.0,62505.0,1.4322673]
[1724754551033,0.31841481,62506.0,62505.0,1.1122933]
[1724754551277,0.31841481,62506.0,62505.0,0.0087887]
[1724754551933,0.31841481,62506.0,62505.0,0.0087299]
[1724754553483,0.35253506,62506.0,62505.0,0.0087299]
[1724754553710,1.38235706,62506.0,62505.0,0.0087299]
[1724754553940,1.40743517,62506.0,62505.0,0.0087299]
[1724754554362,0.34349292,62506.0,62505.0,0.0087299]
[1724754554588,0.34149292,62506.0,62501.0,0.0001926]
[1724754554804,0.34149292,62506.0,62505.0,0.004]
[1724754555468,0.34149292,62506.0,62501.0,0.1601886]
[1724754555855,0.34149292,62506.0,62505.0,0.004]
[1724754556343,0.34149292,62506.0,62501.0,0.1601886]
[1724754556977,0.34149292,62506.0,62501.0,0.0001926]
[1724754557428,0.34149292,62506.0,62502.0,0.159994]
[1724754557644,0.34149292,62506.0,62501.0,0.0001926]
[1724754557849,0.34149292,62506.0,62501.0,0.0041926]
[1724754558278,0.34149292,62506.0,62501.0,0.0001926]
[1724754558538,0.34149292,62506.0,62501.0,0.1601886]
[1724754558750,0.34149292,62506.0,62502.0,0.004]
[1724754559169,0.34149292,62506.0,62501.0,0.0001926]
[1724754559371,0.34149292,62506.0,62501.0,0.159995]
[1724754559582,0.34149292,62506.0,62501.0,0.163995]
[1724754559796,0.34149292,62506.0,62502.0,0.159994]
[1724754560003,0.34149292,62506.0,62501.0,0.004]
[1724754560650,0.00399953,62505.0,62501.0,0.004]
[1724754560856,0.159993,62503.0,62495.0,0.1717]
[1724754561318,0.00399953,62505.0,62503.0,0.2334]
[1724754561537,0.50147792,62506.0,62502.0,0.004]
[1724754561752,0.34149292,62506.0,62499.0,0.2334]
[1724754561957,0.34149292,62506.0,62499.0,0.393402]
[1724754562165,0.001,62503.0,62499.0,0.2334]
[1724754562392,0.001,62503.0,62500.0,0.319999]
[1724754562599,0.34149292,62506.0,62502.0,0.159994]
[1724754562811,0.34149292,62506.0,62501.0,0.159997]
[1724754563026,0.34149292,62506.0,62502.0,0.004]
[1724754563463,0.34149292,62506.0,62502.0,0.163994]
[1724754563923,0.34149292,62506.0,62502.0,0.004]
[1724754564345,0.34149292,62506.0,62503.0,0.06272622]
[1724754564574,0.34149292,62506.0,62502.0,0.163994]
[1724754564575,0.34149292,62506.0,62502.0,0.159994]
[1724754564799,0.34149292,62506.0,62499.0,0.30325719]
[1724754564800,0.34149292,62506.0,62500.0,0.319995]
[1724754565008,0.34149292,62506.0,62501.0,0.004]
[1724754565218,0.34149292,62506.0,62502.0,0.25471972]
[1724754565639,0.34149292,62506.0,62502.0,0.09472572]
[1724754565845,0.34149292,62506.0,62503.0,0.004]
[1724754566048,0.34149292,62506.0,62503.0,0.163991]
[1724754566318,0.34149292,62506.0,62503.0,0.159991]
[1724754566526,0.34149292,62506.0,62503.0,0.11034428]
[1724754566751,0.31641481,62506.0,62505.0,0.972635]
[1724754566970,0.31641481,62506.0,62505.0,1.38782896]
[1724754567151,0.31641481,62506.0,62505.0,1.70780296]
[1724754567394,0.31641481,62506.0,62505.0,1.86672105]
[1724754567860,0.31641481,62506.0,62505.0,1.84934518]
[1724754568081,0.31641481,62506.0,62505.0,1.86672092]
[1724754568324,0.31741481,62506.0,62505.0,1.84934518]
[1724754568576,0.31741481,62506.0,62505.0,1.54674682]
[1724754568805,0.31841481,62506.0,62505.0,1.53737118]
[1724754570279,0.31841481,62506.0,62505.0,0.49960509]
[1724754570515,0.31841481,62506.0,62505.0,0.167987]
[1724754570736,0.31841481,62506.0,62505.0,0.008]
[1724754572390,0.31841481,62506.0,62505.0,0.727961]
[1724754572638,0.31841481,62506.0,62505.0,1.047935]
[1724754572867,0.31841481,62506.0,62505.0,1.51300115]
[1724754573107,0.31841481,62506.0,62505.0,1.67191924]
[1724754573344,0.31841481,62506.0,62505.0,1.67285066]
[1724754573565,0.31841481,62506.0,62505.0,1.86025066]
[1724754575234,0.31841481,62506.0,62505.0,1.14042715]
[1724754575478,0.31841481,62506.0,62505.0,0.008]
[1724754581187,0.31841481,62506.0,62505.0,0.008823]
[1724754581188,0.80268291,62506.0,62505.0,0.008823]
[1724754581411,1.37115706,62506.0,62505.0,0.008823]
[1724754581845,1.96362606,62506.0,62505.0,0.008823]
[1724754582762,1.96262606,62506.0,62505.0,0.000823]
[1724754583462,1.9624335,62506.0,62505.0,0.003823]
[1724754583693,1.9614335,62506.0,62505.0,0.003823]
[1724754584131,1.9624335,62506.0,62505.0,0.003823]
[1724754584350,1.9614335,62506.0,62505.0,0.003823]
[1724754584775,1.9642335,62506.0,62505.0,0.003823]
[1724754585008,1.9642335,62506.0,62505.0,0.000823]
[1724754585462,1.6442645,62506.0,62505.0,0.000823]